bitfinex-derivatives/quotes_SOLF0:USTF0_20251119
["timestamp","ask_amount","ask_price","bid_price","bid_amount"]
[1763584706247,3.15,133.07,132.98,3.04]
[1763584706555,3.15,133.05,132.98,3.04]
[1763584706755,3.15,133.05,132.98,9.8154]
[1763584707149,3.15,133.02,133.0,0.04760284]
[1763584707651,0.04878869,133.03,133.0,0.04760284]
[1763584707652,3.19878869,133.03,133.0,0.04760284]
[1763584708354,3.15,133.01,132.92,9.87455357]
[1763584708552,9.9252,132.99,132.92,3.04]
[1763584708850,3.15,132.98,132.88,3.04]
[1763584709149,6.7763,132.97,132.88,3.04]
[1763584709348,0.05202321,132.94,132.91,0.04838631]
[1763584709749,3.20202321,132.94,132.91,0.04838631]
[1763584710644,3.15,132.91,132.81,3.04]
[1763584710848,3.15,132.89,132.81,3.04]
[1763584711857,3.20469602,132.86,132.84,0.0566455]
[1763584712653,0.05469602,132.86,132.84,0.0566455]
[1763584712859,0.05469602,132.86,132.84,3.0966455]
[1763584713258,3.20469602,132.86,132.84,0.0566455]
[1763584713460,0.05469602,132.86,132.84,0.0566455]
[1763584714357,0.05469602,132.86,132.84,3.0966455]
[1763584714963,0.05469602,132.86,132.84,9.8790455]
[1763584715263,0.05469602,132.86,132.85,3.04]
[1763584715764,15.9,132.91,132.86,6.7814]
[1763584716066,3.15,132.94,132.87,3.04]
[1763584716961,3.20040154,132.92,132.89,0.05220974]
[1763584720272,3.25,132.89,132.82,3.1]
[1763584721167,3.25,132.89,132.84,0.0574805]
[1763584721474,3.25,132.86,132.84,0.0574805]
[1763584728078,10.0318,132.86,132.84,0.0574805]
[1763584728270,3.25,132.85,132.84,0.0574805]
[1763584728471,3.25,132.85,132.79,9.8851]
[1763584728667,3.25,132.85,132.79,3.1]
[1763584729176,3.25,132.85,132.78,105.5536]
[1763584729177,3.25,132.85,132.8,9.8846]
[1763584729581,3.30038905,132.84,132.81,0.05670591]
[1763584729975,3.30038905,132.84,132.81,3.15670591]
[1763584731581,0.05038905,132.84,132.81,3.15670591]
[1763584732281,3.30038905,132.84,132.81,3.15670591]
[1763584732479,3.30038905,132.84,132.81,0.05670591]
[1763584732777,3.25,132.82,132.81,0.05670591]
[1763584732985,3.25,132.82,132.75,3.1]
[1763584733574,10.0338,132.82,132.76,6.7867]
[1763584733771,3.25,132.82,132.76,9.8867]
[1763584733981,0.05643725,132.8,132.78,0.04848285]
[1763584735478,3.30643725,132.8,132.78,0.04848285]
[1763584736786,121.396,132.86,132.78,0.04848285]
[1763584736787,3.25,132.86,132.8,3.1]
[1763584736987,3.25,132.89,132.8,3.1]
[1763584737383,3.25,132.83,132.77,3.1]
[1763584737583,3.25,132.88,132.79,3.1]
[1763584737788,0.05540169,132.85,132.82,0.0576666]
[1763584737984,0.05540169,132.85,132.82,9.9413666]
[1763584738282,0.05540169,132.85,132.82,0.0576666]
[1763584738488,0.05540169,132.85,132.82,3.1576666]
[1763584740190,3.30540169,132.85,132.82,0.0576666]
[1763584740390,3.30540169,132.85,132.82,3.1576666]
[1763584740989,0.05540169,132.85,132.83,3.1]
[1763584741592,0.05540169,132.85,132.83,9.8831]
[1763584741792,0.05540169,132.85,132.84,3.1]
[1763584742690,0.05540169,132.85,132.83,6.7831]
[1763584742894,3.30540169,132.85,132.82,0.0576666]
[1763584743099,3.30540169,132.85,132.82,3.1576666]
[1763584743802,3.30540169,132.85,132.82,0.0576666]
[1763584744001,3.30540169,132.85,132.76,19.02]
[1763584744195,3.25,132.85,132.77,3.1]
[1763584744611,3.25,132.82,132.78,9.8857]
[1763584744812,3.25,132.82,132.78,3.1]
[1763584745006,0.05145348,132.81,132.79,0.0520996]
[1763584745203,0.05145348,132.81,132.79,6.8371996]
[1763584747511,0.05145348,132.81,132.79,0.0520996]
[1763584747512,3.30145348,132.81,132.79,0.0520996]
[1763584748006,105.639,132.68,132.58,9.10651602]
[1763584748208,105.6284,132.69,132.56,3.08]
[1763584748395,16.06,132.68,132.57,3.08]
[1763584748599,116.26108779,132.69,132.57,3.08]
[1763584748906,0.05712307,132.64,132.62,0.05040225]
[1763584749209,105.71764091,132.64,132.62,0.05040225]
[1763584749605,6.7938,132.63,132.52,3.08]
[1763584750113,16.08,132.64,132.52,6.7986]
[1763584750307,16.08,132.64,132.53,3.08]
[1763584750507,0.04757254,132.6,132.57,0.04859184]
[1763584752714,0.04757254,132.6,132.57,3.12859184]
[1763584754907,105.639,132.68,132.57,3.12859184]
[1763584755110,105.639,132.68,132.57,3.08]
[1763584755111,121.719,132.68,132.57,3.08]
[1763584755603,105.6581,132.66,132.57,3.08]
[1763584755808,105.6689,132.64,132.57,3.08]
[1763584756009,0.04879328,132.62,132.59,0.04952891]
[1763584757119,6.84309328,132.62,132.59,0.04952891]
[1763584760122,0.04879328,132.62,132.59,0.04952891]
[1763584760821,0.04879328,132.62,132.59,3.12952891]
[1763584761315,0.04879328,132.62,132.59,0.04952891]
[1763584762619,6.84299328,132.62,132.59,0.04952891]
[1763584764216,0.04879328,132.62,132.59,0.04952891]
[1763584765719,6.84309328,132.62,132.59,0.04952891]
[1763584766418,6.7947,132.61,132.59,0.04952891]
[1763584766621,6.7947,132.61,132.53,3.23]
[1763584766822,105.7088,132.59,132.53,3.23]
[1763584767122,105.7244,132.57,132.5,3.23]
[1763584767716,121.7798,132.58,132.52,3.28469819]
[1763584767717,0.05449243,132.55,132.52,3.28469819]
[1763584771122,0.05449243,132.55,132.52,0.05469819]
[1763584771530,0.05449243,132.55,132.52,3.28469819]
[1763584774434,6.83579712,132.63,132.54,3.23]
[1763584774933,6.83579712,132.63,132.55,3.23]
[1763584774934,6.794,132.62,132.55,3.23]
[1763584775426,0.04865616,132.6,132.57,0.05598466]
[1763584775631,0.04865616,132.6,132.57,3.28598466]
[1763584776519,0.04865616,132.6,132.57,0.05598466]
[1763584778438,0.04865616,132.6,132.57,3.35598466]
[1763584779436,0.04865616,132.6,132.57,10.15238466]
[1763584779630,0.04865616,132.6,132.58,3.3]
[1763584781138,0.04865616,132.6,132.57,0.05598466]
[1763584781441,0.04865616,132.6,132.57,3.35598466]
[1763584783730,0.04865616,132.6,132.57,0.05598466]
[1763584784738,0.04865616,132.6,132.57,3.35598466]
[1763584789543,6.84365616,132.6,132.57,0.05598466]
[1763584789730,6.84365616,132.6,132.57,3.35598466]
[1763584791337,7.02100638,132.6,132.57,3.35598466]
[1763584791735,0.04865616,132.6,132.57,3.35598466]
[1763584792342,6.97235022,132.59,132.57,6.85238466]
[1763584792546,6.97235022,132.59,132.58,3.3]
[1763584799948,7.02100638,132.6,132.58,3.3]
[1763584800252,7.02100638,132.6,132.59,3.3]
[1763584801047,7.02100638,132.6,132.58,3.3]
[1763584801252,28.16758323,132.59,132.52,3.3]
[1763584801552,9.92321961,132.56,132.52,3.3]
[1763584801849,13.84970334,132.55,132.52,3.3]
[1763584802052,9.92321961,132.54,132.48,3.3]
[1763584802252,2.92202465,132.52,132.5,0.05139596]
[1763584802444,9.72112465,132.52,132.5,0.05139596]
[1763584802750,6.85000838,132.52,132.5,0.05139596]
[1763584803256,0.05090838,132.52,132.5,0.05139596]
[1763584804546,6.85000838,132.52,132.5,0.05139596]
[1763584804754,0.05090838,132.52,132.5,0.05139596]
[1763584805253,6.85000838,132.52,132.5,0.05139596]
[1763584805456,0.05090838,132.52,132.45,3.3]
[1763584805659,112.81160334,132.53,132.45,3.3]
[1763584806051,121.7515,132.54,132.45,3.3]
[1763584806052,13.89642474,132.52,132.45,3.3]
[1763584806357,7.05210334,132.56,132.46,3.3]
[1763584806553,0.04874305,132.52,132.5,3.34864167]
[1763584807367,0.04874305,132.52,132.5,10.14854167]
[1763584807554,0.04874305,132.52,132.51,3.3]
[1763584811362,16.0,132.57,132.53,3.27]
[1763584811965,7.05210334,132.61,132.56,3.27]
[1763584812365,0.05420488,132.6,132.58,3.27]
[1763584813567,0.05420488,132.6,132.57,0.05142652]
[1763584814078,6.7956,132.59,132.57,0.05142652]
[1763584815071,0.05420488,132.6,132.57,0.05142652]
[1763584815767,6.7957,132.59,132.57,0.05142652]
[1763584816771,13.83322052,132.59,132.57,0.05142652]
[1763584817166,6.7957,132.59,132.57,0.05142652]
[1763584817878,7.0917254,132.6,132.57,0.05142652]
[1763584818578,0.05420488,132.6,132.57,0.05142652]
[1763584818773,6.84930488,132.6,132.57,0.05142652]
[1763584821979,6.7955,132.59,132.57,0.05142652]
[1763584822475,7.0917254,132.6,132.57,3.32142652]
[1763584822880,0.05420488,132.6,132.57,3.32142652]
[1763584824175,6.84920488,132.6,132.57,3.32142652]
[1763584824376,7.0917254,132.6,132.57,0.05142652]
[1763584824874,6.7955,132.59,132.57,0.05142652]
[1763584826772,4.5413465,132.6,132.57,3.41142652]
[1763584827373,0.05420488,132.6,132.57,3.41142652]
[1763584828278,0.05420488,132.6,132.58,3.36]
[1763584831584,0.05420488,132.6,132.57,0.05142652]
[1763584831981,0.05420488,132.6,132.57,3.41142652]
[1763584832180,6.7955,132.59,132.57,0.05142652]
[1763584832387,11.28264162,132.59,132.57,0.05142652]
[1763584832577,7.0917254,132.6,132.57,0.05142652]
[1763584832987,6.7956,132.59,132.57,0.05142652]
[1763584833285,7.0917254,132.6,132.57,0.05142652]
[1763584833480,6.7955,132.59,132.57,0.05142652]
[1763584833681,7.0917254,132.6,132.57,0.05142652]
[1763584834078,6.7955,132.59,132.57,0.05142652]
[1763584834279,0.05420488,132.6,132.57,0.05142652]
[1763584834784,7.0917254,132.6,132.57,0.05142652]
[1763584835285,6.796,132.58,132.57,0.05142652]
[1763584836887,13.8872254,132.6,132.57,3.41142652]
[1763584837186,11.3368465,132.6,132.57,0.05142652]
[1763584837589,6.7957,132.59,132.57,0.05142652]
[1763584839189,6.796,132.58,132.57,0.05142652]
[1763584839596,11.28314162,132.58,132.57,0.05142652]
[1763584839792,4.48714162,132.56,132.51,3.04]
[1763584839982,11.53085543,132.56,132.51,3.04]
[1763584840889,0.05430197,132.55,132.52,0.05556277]
[1763584841091,6.7981,132.54,132.52,0.05556277]
[1763584841284,0.05430197,132.55,132.52,0.05556277]
[1763584841794,6.7981,132.54,132.52,0.05556277]
[1763584841983,0.05430197,132.55,132.52,0.05556277]
[1763584842179,7.09801578,132.55,132.52,0.05556277]
[1763584842491,0.05430197,132.55,132.52,0.05556277]
[1763584843691,6.7981,132.54,132.52,0.05556277]
[1763584844586,0.05430197,132.55,132.52,0.05556277]
[1763584844791,20.44714162,132.54,132.52,0.05556277]
[1763584844990,27.24534162,132.54,132.52,0.05556277]
[1763584845191,34.28905543,132.54,132.52,0.05556277]
[1763584845595,133.24235543,132.54,132.48,3.04]
[1763584845897,4.48714162,132.51,132.43,3.04]
[1763584846079,4.48714162,132.51,132.46,6.8021]
[1763584846286,7.04371381,132.54,132.47,3.04]
[1763584846491,15.96,132.53,132.49,0.04850113]
[1763584846789,0.05543766,132.52,132.49,3.08850113]
[1763584847192,7.04371381,132.58,132.53,3.04]
[1763584847388,7.04371381,132.59,132.53,3.04]
[1763584847594,4.48714162,132.61,132.54,3.04]
[1763584847794,4.48714162,132.61,132.55,3.04]
[1763584848001,7.04371381,132.62,132.55,3.04]
[1763584848192,0.05710019,132.6,132.58,3.04]
[1763584860304,7.04371381,132.64,132.59,3.04]
[1763584860509,7.04371381,132.65,132.59,3.04]
[1763584860692,112.70421381,132.65,132.59,3.04]
[1763584860893,7.04371381,132.61,132.53,3.04]
[1763584861198,0.05028952,132.58,132.57,3.04]
[1763584862901,0.05028952,132.58,132.56,0.04830573]
[1763584863203,0.05028952,132.58,132.56,3.08830573]
[1763584863593,6.84628952,132.58,132.56,3.08830573]
[1763584870212,0.05028952,132.58,132.56,3.08830573]
[1763584870602,0.05028952,132.58,132.56,0.04830573]
[1763584870803,0.05028952,132.58,132.56,3.29830573]
[1763584871399,6.7965,132.57,132.56,3.29830573]
[1763584871607,0.05028952,132.58,132.56,3.29830573]
[1763584873815,6.84628952,132.58,132.56,3.29830573]
[1763584874117,0.05028952,132.58,132.56,3.29830573]
[1763584875112,11.53085543,132.64,132.57,3.25]
[1763584875320,11.53085543,132.64,132.6,3.25]
[1763584875517,23.00371381,132.65,132.6,3.25]
[1763584875916,0.05515909,132.64,132.61,0.04796486]
[1763584876114,0.05515909,132.64,132.61,3.29796486]
[1763584877516,6.7934,132.63,132.61,3.29796486]
[1763584877921,4.54230071,132.64,132.61,3.29796486]
[1763584878112,11.28104162,132.62,132.61,0.04796486]
[1763584879021,4.48714162,132.62,132.61,0.04796486]
[1763584880423,11.28104162,132.62,132.61,0.04796486]
[1763584880926,9.66462102,132.62,132.61,0.04796486]
[1763584881224,6.7949,132.61,132.58,3.25]
[1763584881422,2.87072102,132.6,132.58,3.25]
[1763584881622,6.7949,132.61,132.58,3.25]
[1763584881825,9.66562102,132.61,132.58,3.25]
[1763584882019,6.795,132.6,132.58,3.25]
[1763584882219,6.795,132.6,132.58,3.30199565]
[1763584882220,6.84527371,132.6,132.58,3.30199565]
[1763584882420,0.05027371,132.6,132.58,3.30199565]
[1763584884523,2.87072102,132.59,132.58,0.05199565]
[1763584884928,2.87072102,132.59,132.55,3.25]
[1763584885127,9.66722102,132.57,132.55,3.25]
[1763584885828,9.72018222,132.57,132.55,3.30608323]
[1763584886332,2.92368222,132.57,132.55,3.30608323]
[1763584886523,2.87072102,132.6,132.55,3.30608323]
[1763584886720,2.87072102,132.6,132.55,10.10348323]
[1763584886921,2.87072102,132.6,132.56,3.11]
[1763584887430,6.7955,132.59,132.56,3.11]
[1763584887625,6.84334404,132.59,132.56,3.11]
[1763584887828,6.7966,132.57,132.55,0.05608323]
[1763584888434,2.87072102,132.56,132.55,0.05608323]
[1763584889335,9.91443483,132.56,132.55,0.05608323]
[1763584889933,6.7975,132.55,132.48,6.8008]
[1763584890129,2.87072102,132.53,132.49,3.11]
[1763584890632,2.87072102,132.54,132.5,3.11]
[1763584891133,2.87072102,132.52,132.51,0.05778375]
[1763584891337,2.87072102,132.52,132.47,3.11]
[1763584891635,2.87072102,132.5,132.47,3.11]
[1763584892234,2.92270529,132.5,132.47,3.16482568]
[1763584892735,0.05198427,132.5,132.47,3.16482568]
[1763584894536,2.92270529,132.5,132.47,3.16482568]
[1763584894840,9.72300529,132.5,132.47,3.16482568]
[1763584895428,6.8008,132.49,132.47,3.16482568]
[1763584895735,2.87072102,132.48,132.47,0.05482568]
[1763584896242,2.87072102,132.48,132.41,3.11]
[1763584896433,2.87072102,132.46,132.41,3.11]
[1763584896736,18.83072102,132.47,132.42,3.11]
[1763584896931,2.87072102,132.45,132.39,3.11]
[1763584897134,0.05172095,132.43,132.42,3.11]
[1763584898425,2.87072102,132.48,132.43,3.25]
[1763584899141,2.87072102,132.48,132.44,3.25]
[1763584899336,0.04853686,132.47,132.45,0.0546616]
[1763584899537,0.04853686,132.47,132.45,3.3046616]
[1763584900027,0.04853686,132.47,132.45,0.0546616]
[1763584900028,2.87072102,132.46,132.45,0.0546616]
[1763584902337,6.85053686,132.47,132.45,0.0546616]
[1763584902338,2.91925788,132.47,132.45,3.3046616]
[1763584902638,2.91925788,132.47,132.45,0.0546616]
[1763584903038,0.04853686,132.47,132.45,0.0546616]
[1763584903333,0.04853686,132.47,132.45,3.3046616]
[1763584903840,0.04853686,132.47,132.45,0.0546616]
[1763584905339,2.87072102,132.46,132.4,3.25]
[1763584905535,2.87072102,132.44,132.4,3.25]
[1763584905839,6.8038,132.43,132.4,3.25]
[1763584906228,124.66142102,132.44,132.38,3.25]
[1763584906433,2.87072102,132.4,132.39,0.04812042]
[1763584907336,18.83072102,132.4,132.34,3.25]
[1763584907538,2.87072102,132.37,132.34,3.25]
[1763584908447,2.9272018,132.37,132.34,3.29794453]
[1763584908945,2.87072102,132.35,132.34,0.04794453]
[1763584909733,15.96,132.36,132.34,0.04794453]
[1763584909930,18.83072102,132.36,132.34,0.04794453]
[1763584910131,0.05648078,132.37,132.34,3.29794453]
[1763584911241,2.87072102,132.4,132.34,3.29794453]
[1763584911442,18.83072102,132.4,132.34,3.25]
[1763584911953,15.96,132.4,132.34,3.25]
[1763584912142,2.87072102,132.39,132.34,3.25]
[1763584912444,0.04797668,132.38,132.35,3.29958889]
[1763584913042,0.04797668,132.38,132.35,0.04958889]
[1763584913737,6.8069,132.37,132.35,3.29958889]
[1763584913938,6.8069,132.37,132.35,0.04958889]
[1763584914536,15.98,132.36,132.35,0.04958889]
[1763584915142,6.9068867,132.38,132.35,0.04958889]
[1763584915344,22.8868867,132.38,132.35,3.29958889]
[1763584916150,22.8868867,132.38,132.35,0.04958889]
[1763584916341,29.6933867,132.38,132.35,0.04958889]
[1763584919354,29.6933867,132.38,132.35,3.29958889]
[1763584920155,29.6933867,132.38,132.35,0.04958889]
[1763584920347,22.83447668,132.38,132.35,0.04958889]
[1763584920951,105.9019,132.35,132.24,3.25]
[1763584921148,6.85891002,132.34,132.24,3.25]
[1763584921350,16.02,132.33,132.24,3.25]
[1763584921750,0.05473441,132.3,132.27,3.30230319]
[1763584921944,0.05473441,132.3,132.27,0.05230319]
[1763584922145,0.05473441,132.3,132.2,3.25]
[1763584922146,121.9896,132.29,132.2,3.25]
[1763584922350,128.84971002,132.29,132.2,3.25]
[1763584922545,6.8121,132.27,132.2,3.25]
[1763584922851,105.9568,132.28,132.2,3.25]
[1763584923354,0.05656481,132.25,132.23,0.05455136]
[1763584924654,16.09656481,132.25,132.23,0.05455136]
[1763584926261,0.05656481,132.25,132.23,3.30455136]
[1763584929363,0.05656481,132.25,132.23,0.05455136]
[1763584931363,119.70937483,132.25,132.23,0.05455136]
[1763584931666,13.72887483,132.25,132.23,0.05455136]
[1763584933858,106.0064,132.22,132.16,3.14]
[1763584934164,22.89891002,132.22,132.16,3.14]
[1763584934458,29.71381002,132.22,132.16,3.14]
[1763584934665,22.89891002,132.22,132.16,3.14]
[1763584934962,0.05718123,132.2,132.16,3.14]
[1763584935368,0.05718123,132.2,132.16,110.7093]
[1763584935565,0.05718123,132.2,132.17,3.14]
[1763584935760,22.89891002,132.25,132.2,3.14]
[1763584935963,6.85891002,132.28,132.2,3.14]
[1763584936168,16.04,132.29,132.2,3.14]
[1763584936463,12.20188456,132.28,132.2,3.14]
[1763584936770,16.04,132.29,132.18,106.0326]
[1763584936771,0.05414532,132.25,132.23,3.19091009]
[1763584938259,6.85891002,132.31,132.24,3.14]
[1763584938471,5.34679654,132.3,132.24,3.14]
[1763584938670,105.9204,132.33,132.24,3.14]
[1763584938969,112.79231002,132.31,132.24,3.14]
[1763584939166,5.34650077,132.3,132.24,3.14]
[1763584939467,0.05402652,132.28,132.26,0.055316]
[1763584940766,0.05402652,132.28,132.26,3.195316]
[1763584942073,0.05402652,132.28,132.26,0.055316]
[1763584942272,6.86552652,132.28,132.26,0.055316]
[1763584945072,0.05402652,132.28,132.26,0.055316]
[1763584945769,6.86562652,132.28,132.26,0.055316]
[1763584946172,0.05402652,132.28,132.26,3.285316]
[1763584949363,23.06371381,132.35,132.28,10.0413]
[1763584949578,5.38238359,132.34,132.29,3.23]
[1763584949969,6.8092,132.33,132.29,3.23]
[1763584950168,5.38238359,132.32,132.29,3.23]
[1763584950668,5.433719,132.32,132.29,3.28226115]
[1763584951472,5.38238359,132.31,132.29,0.05226115]
[1763584951779,5.38238359,132.3,132.29,0.05226115]
[1763584953470,5.38238359,132.3,132.24,3.23]
[1763584953471,6.8111,132.29,132.25,3.23]
[1763584953670,5.38238359,132.28,132.25,3.23]
[1763584954278,5.38238359,132.28,132.22,10.0441]
[1763584954578,5.38238359,132.28,132.24,0.05800723]
[1763584954579,0.05354442,132.26,132.24,0.05800723]
[1763584954772,12.19538359,132.25,132.24,0.05800723]
[1763584955271,5.38238359,132.25,132.24,0.05800723]
[1763584955673,0.05354442,132.26,132.24,0.05800723]
[1763584955976,5.43592801,132.26,132.24,0.05800723]
[1763584956175,5.38238359,132.25,132.24,0.05800723]
[1763584956376,0.05354442,132.26,132.24,0.05800723]
[1763584956674,12.24842801,132.26,132.24,0.05800723]
[1763584956878,5.38238359,132.25,132.24,0.05800723]
[1763584957284,6.8139,132.24,132.19,3.23]
[1763584957581,5.38238359,132.23,132.19,3.23]
[1763584957775,5.38238359,132.22,132.19,3.23]
[1763584957983,7.04371381,132.25,132.19,3.23]
[1763584958172,5.40987977,132.24,132.19,3.23]
[1763584958372,5.46077859,132.23,132.2,0.0551169]
[1763584958576,5.40987977,132.22,132.2,0.0551169]
[1763584958775,5.40987977,132.21,132.2,0.0551169]
[1763584959091,5.40987977,132.21,132.16,3.24]
[1763584959092,5.40987977,132.21,132.12,3.24]
[1763584959277,5.40987977,132.2,132.12,3.24]
[1763584959476,5.40987977,132.19,132.12,3.24]
[1763584959671,5.40987977,132.18,132.12,3.24]
[1763584959875,6.8167,132.18,132.12,3.24]
[1763584960077,0.05030811,132.16,132.12,3.24]
[1763584960377,0.05030811,132.16,132.13,6.819]
[1763584960677,5.41473719,132.19,132.14,3.24]
[1763584960874,7.04371381,132.22,132.15,3.24]
[1763584961079,5.41395812,132.21,132.17,3.24]
[1763584961382,5.41653823,132.2,132.17,3.24]
[1763584961682,5.41661333,132.19,132.17,3.29344839]
[1763584961882,0.05666841,132.2,132.17,3.29344839]
[1763584962284,5.41616531,132.19,132.17,3.29344839]
[1763584962480,0.05666841,132.2,132.17,3.29344839]
[1763584963283,5.42291364,132.19,132.17,3.29344839]
[1763584964689,0.05666841,132.2,132.17,3.29344839]
[1763584964984,7.10038222,132.2,132.17,0.05344839]
[1763584965185,6.8162,132.19,132.17,0.05344839]
[1763584965789,7.10038222,132.2,132.17,0.05344839]
[1763584966094,0.05666841,132.2,132.17,0.05344839]
[1763584967195,0.05666841,132.2,132.17,3.29344839]
[1763584969785,0.05666841,132.2,132.17,10.11044839]
[1763584969992,0.05666841,132.2,132.18,3.24]
[1763584970384,7.04371381,132.26,132.19,3.24]
[1763584970692,7.04371381,132.27,132.19,3.24]
[1763584970991,7.04371381,132.26,132.19,3.24]
[1763584971380,7.04371381,132.26,132.21,0.05216374]
[1763584971687,0.05675957,132.24,132.21,3.29216374]
[1763584973292,0.05675957,132.24,132.23,3.24]
[1763584974884,0.05675957,132.24,132.21,0.05216374]
[1763584975083,6.87035957,132.24,132.21,0.05216374]
[1763584978093,6.8141,132.23,132.21,0.05216374]
[1763584980992,6.8141,132.23,132.15,3.24]
[1763584980993,6.8159,132.2,132.15,3.24]
[1763584981196,7.04371381,132.23,132.15,3.24]
[1763584981490,7.04371381,132.23,132.16,3.24]
[1763584982093,6.86347211,132.21,132.18,3.2886418]
[1763584983199,6.8156,132.2,132.18,0.0486418]
[1763584986997,22.8156,132.2,132.18,0.0486418]
[1763584989498,6.8173,132.17,132.13,3.24]
[1763584990094,6.8173,132.17,132.14,3.24]
[1763584990503,16.0,132.2,132.14,3.24]
[1763584990703,0.05707838,132.18,132.14,3.24]
[1763584991014,0.05707838,132.18,132.14,6.8186]
[1763584991198,0.05707838,132.18,132.14,3.24]
[1763584992704,0.05707838,132.18,132.14,10.0585]
[1763584992904,0.05707838,132.18,132.15,3.24]
[1763584995403,6.87367838,132.18,132.15,3.24]
[1763584995604,6.87367838,132.18,132.1,106.095]
[1763584995605,0.05707838,132.18,132.1,3.24]
[1763584995805,0.04799851,132.15,132.1,3.24]
[1763584996006,0.04799851,132.15,132.13,3.24]
[1763584999404,0.04799851,132.15,132.11,6.8202]
[1763584999609,0.04799851,132.15,132.12,3.24]
[1763585001010,0.04799851,132.15,132.14,3.24]
[1763585003300,0.04799851,132.15,132.14,10.0586]
[1763585004210,0.04799851,132.15,132.14,3.24]
[1763585007216,0.04799851,132.15,132.12,3.22]
[1763585008112,0.04799851,132.15,132.12,10.0394]
[1763585008409,0.04799851,132.15,132.13,3.22]
[1763585008805,0.04799851,132.15,132.14,3.22]
[1763585009299,0.04799851,132.15,132.14,10.0386]
[1763585010614,0.04799851,132.15,132.14,3.22]
[1763585010812,0.04799851,132.15,132.11,3.22]
[1763585011511,0.04799851,132.15,132.13,3.22]
[1763585014315,0.04799851,132.15,132.13,10.0391]
[1763585014509,0.04799851,132.15,132.13,6.8191]
[1763585014713,0.04799851,132.15,132.14,3.22]
[1763585015610,7.03986758,132.2,132.15,3.22]
[1763585015808,2.89009231,132.2,132.15,3.22]
[1763585016314,6.816,132.19,132.15,3.22]
[1763585016714,0.05699765,132.18,132.16,3.27637433]
[1763585018408,0.05699765,132.18,132.17,3.27]
[1763585020224,0.05699765,132.18,132.17,10.0871]
[1763585022125,0.05699765,132.18,132.17,3.27]
[1763585022423,0.05699765,132.18,132.16,3.32637433]
[1763585023524,0.05699765,132.18,132.16,10.14367433]
[1763585023825,0.05699765,132.18,132.17,3.27]
[1763585027824,7.07946656,132.2,132.18,6.8165]
[1763585028028,9.96955887,132.22,132.19,3.27]
[1763585028223,7.07946656,132.23,132.19,3.27]
[1763585028534,25.96955887,132.24,132.19,3.27]
[1763585029029,0.04955585,132.23,132.21,3.27]
[1763585030030,9.70459231,132.22,132.2,0.04801359]
[1763585030328,2.89009231,132.22,132.2,0.04801359]
[1763585030630,7.07946656,132.21,132.2,0.04801359]
[1763585031226,13.89446656,132.21,132.2,0.04801359]
[1763585031426,6.815,132.21,132.2,0.04801359]
[1763585032623,16.78405887,132.22,132.2,3.31801359]
[1763585032829,9.70459231,132.22,132.2,3.31801359]
[1763585035123,6.815,132.21,132.2,0.04801359]
[1763585035328,7.11834254,132.23,132.2,3.31801359]
[1763585035528,2.89009231,132.22,132.2,3.31801359]
[1763585035724,9.70489231,132.22,132.2,0.04801359]
[1763585036234,9.958879,132.22,132.2,0.04801359]
[1763585037522,9.958879,132.22,132.2,3.31801359]
[1763585037822,9.958879,132.22,132.2,0.04801359]
[1763585038437,2.89009231,132.22,132.2,0.04801359]
[1763585038825,6.815,132.21,132.2,0.04801359]
[1763585039730,9.70459231,132.22,132.2,0.04801359]
[1763585040030,9.70459231,132.22,132.2,3.31801359]
[1763585040229,13.92960266,132.23,132.2,3.31801359]
[1763585040935,9.95613912,132.22,132.2,0.04801359]
[1763585041432,9.70459231,132.22,132.2,3.31801359]
[1763585043735,6.8145,132.22,132.2,3.31801359]
[1763585043936,9.70459231,132.22,132.2,3.31801359]
[1763585044338,6.815,132.21,132.2,3.31801359]
[1763585044532,6.815,132.21,132.2,0.04801359]
[1763585045138,6.8162,132.19,132.17,3.27]
[1763585046042,6.87415654,132.19,132.17,3.32012597]
[1763585046237,0.05795654,132.19,132.17,3.32012597]
[1763585047332,0.05795654,132.19,132.17,10.13692597]
[1763585047536,0.05795654,132.19,132.18,3.27]
[1763585048243,0.05795654,132.19,132.17,3.11012597]
[1763585050347,6.87395654,132.19,132.17,3.11012597]